[Event "Early-Titled-Tuesday-Blitz-December-26-2023"]
[Site "Chess.com"]
[Date "2023.12.26"]
[Round "7"]
[White "giomar27"]
[Black "LuisFSiles"]
[Result "1-0"]
[WhiteElo "2397"]
[BlackElo "2271"]
[TimeControl "180+1"]
[EndTime "9:14:50 PST"]
[Termination "giomar27 won by resignation"]

1. e4 {[%clk 0:03:00.9]} 1... c5 {[%clk 0:02:59.2]} 2. Nf3 {[%clk 0:03:00.8]}
2... Nc6 {[%clk 0:02:59.4]} 3. Bc4 {[%clk 0:03:01]} 3... e6 {[%clk 0:02:58.3]}
4. O-O {[%clk 0:03:01.1]} 4... a6 {[%clk 0:02:58]} 5. Re1 {[%clk 0:03:00.4]}
5... Nf6 {[%clk 0:02:51.1]} 6. Bf1 {[%clk 0:02:55.2]} 6... d5 {[%clk 0:02:41.2]}
7. e5 {[%clk 0:02:55.5]} 7... Nd7 {[%clk 0:02:41.2]} 8. c3 {[%clk 0:02:55.9]}
8... g5 {[%clk 0:02:34.4]} 9. d4 {[%clk 0:02:53.5]} 9... g4 {[%clk 0:02:33.9]}
10. Ng5 {[%clk 0:02:31.6]} 10... h6 {[%clk 0:02:16]} 11. Nxe6 {[%clk 0:02:30]}
11... fxe6 {[%clk 0:02:15.3]} 12. Qxg4 {[%clk 0:02:30.2]} 12... Qe7 {[%clk
0:02:12.7]} 13. Bd3 {[%clk 0:02:25.9]} 13... cxd4 {[%clk 0:02:06.2]} 14. cxd4
{[%clk 0:02:23.2]} 14... Bg7 {[%clk 0:01:48.3]} 15. Bg6+ {[%clk 0:02:19.3]}
15... Kd8 {[%clk 0:01:47.4]} 16. Nc3 {[%clk 0:02:18.9]} 16... b5 {[%clk
0:01:37.9]} 17. Be3 {[%clk 0:02:17.2]} 17... Bb7 {[%clk 0:01:35.7]} 18. f4
{[%clk 0:02:04.8]} 18... Kc7 {[%clk 0:01:29.6]} 19. f5 {[%clk 0:02:03.9]} 19...
Ncxe5 {[%clk 0:01:16.7]} 20. dxe5 {[%clk 0:02:01]} 20... Nxe5 {[%clk 0:01:16.6]}
21. Bf4 {[%clk 0:01:58.7]} 21... exf5 {[%clk 0:01:12.3]} 22. Qxf5 {[%clk
0:01:54.9]} 22... Rhf8 {[%clk 0:00:56.1]} 23. Bxe5+ {[%clk 0:01:51.3]} 23...
Bxe5 {[%clk 0:00:53.2]} 24. Qxe5+ {[%clk 0:01:50.2]} 24... Qxe5 {[%clk 0:00:45]}
25. Rxe5 {[%clk 0:01:51.1]} 25... d4 {[%clk 0:00:44.5]} 26. Ne4 {[%clk 0:01:43]}
26... Rf6 {[%clk 0:00:44.1]} 27. Nxf6 {[%clk 0:01:42.3]} 1-0

[Event "Early-Titled-Tuesday-Blitz-December-26-2023"]
[Site "Chess.com"]
[Date "2023.12.26"]
[Round "7"]
[White "Durarbayli"]
[Black "AlexPapasimakopoulos"]
[Result "1-0"]
[WhiteElo "2867"]
[BlackElo "2636"]
[TimeControl "180+1"]
[EndTime "9:14:57 PST"]
[Termination "Durarbayli won by resignation"]

1. c4 {[%clk 0:02:59.4]} 1... e6 {[%clk 0:02:54.4]} 2. e4 {[%clk 0:02:56.8]}
2... d5 {[%clk 0:02:55]} 3. exd5 {[%clk 0:02:57.7]} 3... exd5 {[%clk 0:02:55.7]}
4. d4 {[%clk 0:02:58.6]} 4... Nf6 {[%clk 0:02:55.9]} 5. Nc3 {[%clk 0:02:58.5]}
5... Bb4 {[%clk 0:02:56.1]} 6. Bd3 {[%clk 0:02:45.8]} 6... O-O {[%clk
0:02:56.5]} 7. Ne2 {[%clk 0:02:45.7]} 7... Be6 {[%clk 0:02:48.9]} 8. cxd5 {[%clk
0:02:44.6]} 8... Nxd5 {[%clk 0:02:49.8]} 9. O-O {[%clk 0:02:44.8]} 9... Nc6
{[%clk 0:02:49.7]} 10. Ne4 {[%clk 0:02:35.4]} 10... h6 {[%clk 0:02:47.6]} 11. a3
{[%clk 0:02:31.8]} 11... Be7 {[%clk 0:02:46.8]} 12. Bc2 {[%clk 0:02:29.5]} 12...
Re8 {[%clk 0:02:39.1]} 13. N2g3 {[%clk 0:02:20.9]} 13... Nf6 {[%clk 0:02:32.7]}
14. Be3 {[%clk 0:02:20.4]} 14... Nxe4 {[%clk 0:02:30.4]} 15. Bxe4 {[%clk
0:02:14.3]} 15... Bd5 {[%clk 0:02:30.3]} 16. Bc2 {[%clk 0:02:10.7]} 16... Bg5
{[%clk 0:02:24.3]} 17. Qd3 {[%clk 0:02:10.5]} 17... g6 {[%clk 0:02:24.8]} 18.
Rae1 {[%clk 0:01:51.1]} 18... Qf6 {[%clk 0:02:24.6]} 19. f4 {[%clk 0:01:40.4]}
19... Bh4 {[%clk 0:02:24.1]} 20. f5 {[%clk 0:01:41]} 20... g5 {[%clk 0:02:22.4]}
21. Nh5 {[%clk 0:01:38.1]} 21... Qd6 {[%clk 0:02:18.3]} 22. g3 {[%clk 0:01:30]}
22... Re4 {[%clk 0:02:15.7]} 23. Bf2 {[%clk 0:00:55]} 23... Rae8 {[%clk
0:02:08.7]} 24. Qd1 {[%clk 0:00:46.3]} 24... Kf8 {[%clk 0:01:57.4]} 25. Bxe4
{[%clk 0:00:44.9]} 25... Rxe4 {[%clk 0:01:57.1]} 26. Rxe4 {[%clk 0:00:44.9]}
26... Bxe4 {[%clk 0:01:58]} 27. gxh4 {[%clk 0:00:45.1]} 27... gxh4 {[%clk
0:01:58.1]} 28. Qg4 {[%clk 0:00:42.7]} 28... Bd5 {[%clk 0:01:50.5]} 29. Re1
{[%clk 0:00:42.1]} 29... Ne7 {[%clk 0:01:47.5]} 30. Qg7+ {[%clk 0:00:40.2]}
30... Ke8 {[%clk 0:01:48]} 31. Bxh4 {[%clk 0:00:39.7]} 1-0

[Event "Early-Titled-Tuesday-Blitz-December-26-2023"]
[Site "Chess.com"]
[Date "2023.12.26"]
[Round "7"]
[White "PolinaYanch"]
[Black "GMJustin"]
[Result "0-1"]
[WhiteElo "1683"]
[BlackElo "2240"]
[TimeControl "180+1"]
[EndTime "9:14:58 PST"]
[Termination "GMJustin won by resignation"]

1. d4 {[%clk 0:02:57.6]} 1... Nf6 {[%clk 0:02:45.3]} 2. c4 {[%clk 0:02:56.8]}
2... g6 {[%clk 0:02:44.7]} 3. Nc3 {[%clk 0:02:54.9]} 3... Bg7 {[%clk 0:02:44.7]}
4. g3 {[%clk 0:02:54.6]} 4... O-O {[%clk 0:02:37.3]} 5. Bg2 {[%clk 0:02:55.1]}
5... c5 {[%clk 0:02:35.3]} 6. d5 {[%clk 0:02:54.1]} 6... d6 {[%clk 0:02:23.9]}
7. Nf3 {[%clk 0:02:54.3]} 7... Na6 {[%clk 0:02:18.5]} 8. O-O {[%clk 0:02:53.5]}
8... Nc7 {[%clk 0:02:17.4]} 9. e4 {[%clk 0:02:53.2]} 9... a6 {[%clk 0:02:02.9]}
10. a4 {[%clk 0:02:51.5]} 10... Rb8 {[%clk 0:01:57.8]} 11. a5 {[%clk 0:02:49.1]}
11... b6 {[%clk 0:01:54.3]} 12. axb6 {[%clk 0:02:46.2]} 12... Rxb6 {[%clk
0:01:54.5]} 13. Qc2 {[%clk 0:02:42]} 13... e6 {[%clk 0:01:41.3]} 14. Bg5 {[%clk
0:02:39.7]} 14... h6 {[%clk 0:01:38.3]} 15. Bf4 {[%clk 0:02:32.5]} 15... exd5
{[%clk 0:01:30.3]} 16. exd5 {[%clk 0:02:32.4]} 16... Bf5 {[%clk 0:01:28.2]} 17.
Qd2 {[%clk 0:02:31.3]} 17... g5 {[%clk 0:01:13]} 18. Be3 {[%clk 0:02:30]} 18...
Ne4 {[%clk 0:01:12.7]} 19. Nxe4 {[%clk 0:02:23.9]} 19... Bxe4 {[%clk 0:01:12.9]}
20. Ra2 {[%clk 0:02:20.7]} 20... Qf6 {[%clk 0:01:05.4]} 21. h4 {[%clk
0:02:13.7]} 21... Bxf3 {[%clk 0:01:01]} 22. hxg5 {[%clk 0:02:13.7]} 22... hxg5
{[%clk 0:00:56.4]} 23. Bxg5 {[%clk 0:02:13.8]} 23... Qf5 {[%clk 0:00:54.4]} 24.
Bh6 {[%clk 0:02:04.7]} 24... Bxg2 {[%clk 0:00:43.8]} 25. Bxg7 {[%clk 0:02:03.8]}
25... Qh3 {[%clk 0:00:37.6]} 26. Qh6 {[%clk 0:02:00.7]} 26... Qxh6 {[%clk
0:00:28]} 27. Bxh6 {[%clk 0:02:00.5]} 27... Bxf1 {[%clk 0:00:28]} 28. Bxf8
{[%clk 0:02:00.4]} 28... Bxc4 {[%clk 0:00:25.6]} 0-1

[Event "Early-Titled-Tuesday-Blitz-December-26-2023"]
[Site "Chess.com"]
[Date "2023.12.26"]
[Round "7"]
[White "JafarTheParrot"]
[Black "djokovic74"]
[Result "0-1"]
[WhiteElo "2513"]
[BlackElo "2649"]
[TimeControl "180+1"]
[EndTime "9:15:30 PST"]
[Termination "djokovic74 won by resignation"]

1. e4 {[%clk 0:02:58.6]} 1... e6 {[%clk 0:03:00.5]} 2. d4 {[%clk 0:02:55.1]}
2... d5 {[%clk 0:03:00.8]} 3. exd5 {[%clk 0:02:55.2]} 3... exd5 {[%clk
0:03:00.2]} 4. Nf3 {[%clk 0:02:55.4]} 4... Bd6 {[%clk 0:03:00.4]} 5. Bd3 {[%clk
0:02:55.5]} 5... Ne7 {[%clk 0:03:00.6]} 6. O-O {[%clk 0:02:55.4]} 6... O-O
{[%clk 0:02:59.8]} 7. h3 {[%clk 0:02:52.1]} 7... c6 {[%clk 0:02:57.7]} 8. Ne5
{[%clk 0:02:49.8]} 8... Na6 {[%clk 0:02:49.7]} 9. c3 {[%clk 0:02:48.2]} 9... Nc7
{[%clk 0:02:49.9]} 10. Bf4 {[%clk 0:02:45.3]} 10... Ng6 {[%clk 0:02:46]} 11. Bh2
{[%clk 0:02:43.4]} 11... Re8 {[%clk 0:02:36.8]} 12. f4 {[%clk 0:02:40.3]} 12...
c5 {[%clk 0:02:28.7]} 13. Nd2 {[%clk 0:02:37.5]} 13... cxd4 {[%clk 0:02:16.9]}
14. cxd4 {[%clk 0:02:38.4]} 14... Nf8 {[%clk 0:01:59.7]} 15. Qh5 {[%clk
0:02:29.8]} 15... g6 {[%clk 0:01:56.4]} 16. Qh6 {[%clk 0:02:26.1]} 16... f5
{[%clk 0:01:10.1]} 17. Ndf3 {[%clk 0:02:02.3]} 17... Nfe6 {[%clk 0:01:08.8]} 18.
Nxg6 {[%clk 0:01:45.5]} 18... Qf6 {[%clk 0:01:05.9]} 19. Nfe5 {[%clk 0:01:36.1]}
19... hxg6 {[%clk 0:00:57.6]} 20. Rae1 {[%clk 0:01:15.3]} 20... Qg7 {[%clk
0:00:41.6]} 21. Qxg6 {[%clk 0:01:13.6]} 21... Bxe5 {[%clk 0:00:39.8]} 22. Qxe8+
{[%clk 0:01:13]} 22... Nxe8 {[%clk 0:00:38.8]} 0-1

[Event "Early-Titled-Tuesday-Blitz-December-26-2023"]
[Site "Chess.com"]
[Date "2023.12.26"]
[Round "7"]
[White "Alex_Sahakyan2006"]
[Black "Yurasova_Daria"]
[Result "1-0"]
[WhiteElo "2716"]
[BlackElo "2471"]
[TimeControl "180+1"]
[EndTime "9:16:00 PST"]
[Termination "Alex_Sahakyan2006 won by resignation"]

1. e4 {[%clk 0:03:00.9]} 1... e5 {[%clk 0:02:55.5]} 2. Nf3 {[%clk 0:03:00.2]}
2... Nc6 {[%clk 0:02:53.2]} 3. d4 {[%clk 0:02:53.7]} 3... exd4 {[%clk
0:02:53.5]} 4. Nxd4 {[%clk 0:02:54.4]} 4... Nf6 {[%clk 0:02:53.6]} 5. Nxc6
{[%clk 0:02:54.2]} 5... bxc6 {[%clk 0:02:51.8]} 6. e5 {[%clk 0:02:54.5]} 6...
Qe7 {[%clk 0:02:52.1]} 7. Qe2 {[%clk 0:02:54.3]} 7... Nd5 {[%clk 0:02:52.3]} 8.
h4 {[%clk 0:02:52.2]} 8... g6 {[%clk 0:02:47.7]} 9. Bg5 {[%clk 0:02:47.8]} 9...
Qb4+ {[%clk 0:02:46.5]} 10. c3 {[%clk 0:02:47.7]} 10... Qb6 {[%clk 0:02:38.5]}
11. h5 {[%clk 0:02:38.5]} 11... Bg7 {[%clk 0:02:34.1]} 12. h6 {[%clk 0:02:25.7]}
12... Bf8 {[%clk 0:02:31.7]} 13. Rh4 {[%clk 0:02:21.1]} 13... a5 {[%clk
0:02:30.5]} 14. Qc2 {[%clk 0:02:12.2]} 14... Be7 {[%clk 0:02:28]} 15. Bxe7
{[%clk 0:02:08.8]} 15... Nxe7 {[%clk 0:02:28]} 16. Nd2 {[%clk 0:02:05.8]} 16...
Nf5 {[%clk 0:02:21.4]} 17. Rh3 {[%clk 0:01:57.7]} 17... Rb8 {[%clk 0:02:16]} 18.
g4 {[%clk 0:01:50.7]} 18... Ne7 {[%clk 0:02:13.1]} 19. O-O-O {[%clk 0:01:49.9]}
19... O-O {[%clk 0:02:02.2]} 20. Ne4 {[%clk 0:01:48.3]} 20... d5 {[%clk
0:02:00.3]} 21. exd6 {[%clk 0:01:41.4]} 21... cxd6 {[%clk 0:02:00.6]} 22. Nf6+
{[%clk 0:01:35.8]} 22... Kh8 {[%clk 0:02:00.5]} 23. Rxd6 {[%clk 0:01:35.4]}
23... Be6 {[%clk 0:01:49.3]} 24. Re3 {[%clk 0:01:19.2]} 24... Qc5 {[%clk
0:01:39.3]} 25. Qd2 {[%clk 0:01:15.6]} 25... Qg5 {[%clk 0:01:26.5]} 26. Qd4
{[%clk 0:01:02.9]} 26... c5 {[%clk 0:01:26.8]} 27. Qe5 {[%clk 0:01:03.3]} 27...
Qxe5 {[%clk 0:01:26.9]} 28. Rxe5 {[%clk 0:01:04.2]} 28... Ng8 {[%clk 0:01:17.5]}
29. g5 {[%clk 0:00:55.1]} 29... Nxf6 {[%clk 0:01:13.5]} 30. gxf6 {[%clk
0:00:56]} 30... Rfc8 {[%clk 0:01:11.1]} 31. c4 {[%clk 0:00:52.9]} 31... Kg8
{[%clk 0:01:08.6]} 32. Ra6 {[%clk 0:00:49]} 32... Rb4 {[%clk 0:01:05.1]} 33.
Rxa5 {[%clk 0:00:47.6]} 33... Bxc4 {[%clk 0:01:01.6]} 34. Raxc5 {[%clk
0:00:47.6]} 1-0

[Event "Early-Titled-Tuesday-Blitz-December-26-2023"]
[Site "Chess.com"]
[Date "2023.12.26"]
[Round "7"]
[White "Dinosaurio_1975"]
[Black "defenceboy"]
[Result "1-0"]
[WhiteElo "2623"]
[BlackElo "2788"]
[TimeControl "180+1"]
[EndTime "9:16:01 PST"]
[Termination "Dinosaurio_1975 won by resignation"]

1. e4 {[%clk 0:03:00.9]} 1... c5 {[%clk 0:02:59.1]} 2. Nf3 {[%clk 0:03:00.4]}
2... Nc6 {[%clk 0:02:59.1]} 3. Bb5 {[%clk 0:03:00.7]} 3... g6 {[%clk 0:02:59.1]}
4. O-O {[%clk 0:02:59.6]} 4... Bg7 {[%clk 0:02:59.3]} 5. c3 {[%clk 0:02:59.7]}
5... Qb6 {[%clk 0:02:57]} 6. a4 {[%clk 0:02:52.8]} 6... Nf6 {[%clk 0:02:55.4]}
7. Re1 {[%clk 0:02:52.2]} 7... a6 {[%clk 0:02:53.1]} 8. Bc4 {[%clk 0:02:51.6]}
8... d6 {[%clk 0:02:51.3]} 9. h3 {[%clk 0:02:48.2]} 9... O-O {[%clk 0:02:51]}
10. d4 {[%clk 0:02:48.2]} 10... cxd4 {[%clk 0:02:46.8]} 11. cxd4 {[%clk
0:02:49.1]} 11... Bd7 {[%clk 0:02:32.6]} 12. Nc3 {[%clk 0:02:21.7]} 12... Nb4
{[%clk 0:02:32.5]} 13. e5 {[%clk 0:02:18.5]} 13... Ne8 {[%clk 0:02:26.9]} 14. e6
{[%clk 0:02:06.8]} 14... Bxe6 {[%clk 0:02:23.7]} 15. Bxe6 {[%clk 0:02:07.7]}
15... fxe6 {[%clk 0:02:24.6]} 16. Rxe6 {[%clk 0:02:08.6]} 16... Nc6 {[%clk
0:02:11.9]} 17. Nd5 {[%clk 0:01:53.2]} 17... Qd8 {[%clk 0:02:06.7]} 18. Bg5
{[%clk 0:01:51]} 18... Nf6 {[%clk 0:01:54.4]} 19. Nxf6+ {[%clk 0:01:31.9]} 19...
exf6 {[%clk 0:01:55.3]} 20. Bf4 {[%clk 0:01:31.7]} 20... d5 {[%clk 0:01:48.2]}
21. Qb3 {[%clk 0:01:30.6]} 21... Na5 {[%clk 0:01:46.7]} 22. Qb4 {[%clk
0:01:26.2]} 22... Nc4 {[%clk 0:01:03.2]} 23. Qxb7 {[%clk 0:01:18.8]} 23... Rf7
{[%clk 0:00:59.6]} 24. Qc6 {[%clk 0:01:10.7]} 24... Nxb2 {[%clk 0:00:49.1]} 25.
Rae1 {[%clk 0:01:08.2]} 25... Rc8 {[%clk 0:00:22.4]} 26. Re8+ {[%clk 0:01:01.1]}
26... Bf8 {[%clk 0:00:22.8]} 27. Qxc8 {[%clk 0:01:00.4]} 1-0

[Event "Early-Titled-Tuesday-Blitz-December-26-2023"]
[Site "Chess.com"]
[Date "2023.12.26"]
[Round "7"]
[White "Suleyman_Chess06"]
[Black "Shahdad2007"]
[Result "1-0"]
[WhiteElo "2617"]
[BlackElo "2340"]
[TimeControl "180+1"]
[EndTime "9:16:07 PST"]
[Termination "Suleyman_Chess06 won by resignation"]

1. Nf3 {[%clk 0:03:00.9]} 1... Nf6 {[%clk 0:02:59.4]} 2. g3 {[%clk 0:02:59]}
2... e6 {[%clk 0:02:57.2]} 3. Bg2 {[%clk 0:02:59.9]} 3... d5 {[%clk 0:02:56.9]}
4. d4 {[%clk 0:03:00.8]} 4... c5 {[%clk 0:02:54.1]} 5. O-O {[%clk 0:03:01.7]}
5... Nc6 {[%clk 0:02:54]} 6. c4 {[%clk 0:03:02.1]} 6... dxc4 {[%clk 0:02:52.6]}
7. Qa4 {[%clk 0:03:00.1]} 7... cxd4 {[%clk 0:02:37.3]} 8. Nxd4 {[%clk 0:03:01]}
8... Qxd4 {[%clk 0:02:15.5]} 9. Bxc6+ {[%clk 0:03:01.1]} 9... Bd7 {[%clk
0:02:15.2]} 10. Rd1 {[%clk 0:03:01.3]} 10... Bxc6 {[%clk 0:02:05.5]} 11. Qxc6+
{[%clk 0:03:01.2]} 11... bxc6 {[%clk 0:02:06.4]} 12. Rxd4 {[%clk 0:03:01.6]}
12... Rd8 {[%clk 0:02:00.8]} 13. Rxd8+ {[%clk 0:03:00.7]} 13... Kxd8 {[%clk
0:02:01.7]} 14. Nd2 {[%clk 0:03:01.2]} 14... c3 {[%clk 0:02:01.2]} 15. bxc3
{[%clk 0:03:01.5]} 15... Nd5 {[%clk 0:01:50.6]} 16. c4 {[%clk 0:02:57.2]} 16...
Nb4 {[%clk 0:01:32.6]} 17. Ne4 {[%clk 0:02:56.3]} 17... Be7 {[%clk 0:01:30]} 18.
Be3 {[%clk 0:02:54.2]} 18... a6 {[%clk 0:01:27.5]} 19. Rb1 {[%clk 0:02:51.2]}
19... Kc8 {[%clk 0:01:15.7]} 20. Bc5 {[%clk 0:02:49]} 20... Bxc5 {[%clk
0:01:11.4]} 21. Nxc5 {[%clk 0:02:49.9]} 21... Nxa2 {[%clk 0:01:11.4]} 22. Nxa6
{[%clk 0:02:49.5]} 22... Rd8 {[%clk 0:01:00.9]} 23. Rb8+ {[%clk 0:02:49.1]}
23... Kd7 {[%clk 0:01:00.8]} 24. Nc5+ {[%clk 0:02:47.6]} 24... Ke8 {[%clk
0:00:56.8]} 25. Rb7 {[%clk 0:02:47.1]} 25... Nc3 {[%clk 0:00:53.9]} 26. e3
{[%clk 0:02:42.2]} 26... g6 {[%clk 0:00:47.7]} 27. Rc7 {[%clk 0:02:39.3]} 27...
Rd6 {[%clk 0:00:41.9]} 28. Nb7 {[%clk 0:02:38.3]} 28... Rd1+ {[%clk 0:00:42]}
29. Kg2 {[%clk 0:02:37.6]} 29... Rd2 {[%clk 0:00:42.3]} 30. c5 {[%clk
0:02:31.3]} 30... Ne4 {[%clk 0:00:34.8]} 31. Kf3 {[%clk 0:02:29.4]} 31... Ng5+
{[%clk 0:00:19.6]} 32. Kg2 {[%clk 0:02:22]} 32... Ne4 {[%clk 0:00:19.4]} 33.
Rxc6 {[%clk 0:02:20.3]} 33... Rxf2+ {[%clk 0:00:19]} 34. Kg1 {[%clk 0:02:21]}
34... Rc2 {[%clk 0:00:18.7]} 35. Rc7 {[%clk 0:02:20.9]} 35... g5 {[%clk
0:00:14.3]} 36. c6 {[%clk 0:02:15.9]} 36... g4 {[%clk 0:00:13.7]} 37. Kf1 {[%clk
0:02:09.3]} 37... Rd2 {[%clk 0:00:12.9]} 38. Ke1 {[%clk 0:02:01.9]} 38... Rxh2
{[%clk 0:00:10]} 39. Rd7 {[%clk 0:01:58]} 39... Rh1+ {[%clk 0:00:10.2]} 40. Ke2
{[%clk 0:01:57.8]} 40... Nxg3+ {[%clk 0:00:10.9]} 41. Kd2 {[%clk 0:01:56.7]}
41... Ne4+ {[%clk 0:00:10.1]} 42. Kc2 {[%clk 0:01:57.1]} 42... Nf6 {[%clk
0:00:09.7]} 43. Rd8+ {[%clk 0:01:56.9]} 43... Ke7 {[%clk 0:00:09.1]} 44. c7
{[%clk 0:01:57.5]} 44... Rh2+ {[%clk 0:00:09.1]} 45. Kb3 {[%clk 0:01:57.4]}
45... Rh3 {[%clk 0:00:08.8]} 46. c8=Q {[%clk 0:01:57.5]} 46... Rxe3+ {[%clk
0:00:09.7]} 47. Ka4 {[%clk 0:01:57.7]} 47... Nd5 {[%clk 0:00:10.2]} 48. Rxd5
{[%clk 0:01:52.9]} 1-0

[Event "Early-Titled-Tuesday-Blitz-December-26-2023"]
[Site "Chess.com"]
[Date "2023.12.26"]
[Round "7"]
[White "tylityli"]
[Black "Lion_DL"]
[Result "0-1"]
[WhiteElo "2250"]
[BlackElo "2375"]
[TimeControl "180+1"]
[EndTime "9:16:17 PST"]
[Termination "Lion_DL won by checkmate"]

1. d4 {[%clk 0:03:00.9]} 1... Nf6 {[%clk 0:02:58.6]} 2. c4 {[%clk 0:03:00.4]}
2... e6 {[%clk 0:02:59]} 3. Nc3 {[%clk 0:02:59.9]} 3... Bb4 {[%clk 0:02:59.5]}
4. e3 {[%clk 0:02:58.5]} 4... O-O {[%clk 0:02:59.2]} 5. Ne2 {[%clk 0:02:58.6]}
5... Re8 {[%clk 0:02:59.7]} 6. a3 {[%clk 0:02:58.6]} 6... Bf8 {[%clk 0:02:59.8]}
7. d5 {[%clk 0:02:58.4]} 7... b6 {[%clk 0:02:55.4]} 8. g3 {[%clk 0:02:57.8]}
8... Bb7 {[%clk 0:02:55.4]} 9. Bg2 {[%clk 0:02:57.5]} 9... d6 {[%clk 0:02:53.2]}
10. O-O {[%clk 0:02:57]} 10... e5 {[%clk 0:02:53.3]} 11. e4 {[%clk 0:02:56.7]}
11... a5 {[%clk 0:02:52.5]} 12. h3 {[%clk 0:02:55.4]} 12... Nbd7 {[%clk
0:02:52.9]} 13. Be3 {[%clk 0:02:55.1]} 13... Ba6 {[%clk 0:02:48.5]} 14. b3
{[%clk 0:02:42.8]} 14... Nc5 {[%clk 0:02:45.3]} 15. b4 {[%clk 0:02:36.2]} 15...
axb4 {[%clk 0:02:35.9]} 16. axb4 {[%clk 0:02:35.5]} 16... Ncd7 {[%clk
0:02:35.4]} 17. Qb3 {[%clk 0:02:26.5]} 17... g6 {[%clk 0:02:29.6]} 18. Rfc1
{[%clk 0:02:23]} 18... Bg7 {[%clk 0:02:28.9]} 19. Bf1 {[%clk 0:02:22.9]} 19...
Nh5 {[%clk 0:02:21.4]} 20. c5 {[%clk 0:02:15.9]} 20... bxc5 {[%clk 0:02:18.9]}
21. bxc5 {[%clk 0:02:15.4]} 21... Nxc5 {[%clk 0:02:14.9]} 22. Bxc5 {[%clk
0:02:14.7]} 22... dxc5 {[%clk 0:02:15.8]} 23. Na4 {[%clk 0:02:04.5]} 23... c4
{[%clk 0:02:15]} 24. Qc3 {[%clk 0:01:57.1]} 24... f5 {[%clk 0:02:14]} 25. Nc5
{[%clk 0:01:55.9]} 25... Bb5 {[%clk 0:02:10.9]} 26. Ne6 {[%clk 0:01:48.1]} 26...
Qd7 {[%clk 0:02:03.8]} 27. Qb4 {[%clk 0:01:36.3]} 27... fxe4 {[%clk 0:01:55]}
28. Nxc7 {[%clk 0:01:28.6]} 28... Qxc7 {[%clk 0:01:46.9]} 29. Qxb5 {[%clk
0:01:26]} 29... Rxa1 {[%clk 0:01:44.7]} 30. Qxe8+ {[%clk 0:01:24.7]} 30... Bf8
{[%clk 0:01:40.2]} 31. Rxa1 {[%clk 0:01:21.6]} 31... e3 {[%clk 0:01:36.7]} 32.
fxe3 {[%clk 0:01:17.2]} 32... Qc5 {[%clk 0:01:34.4]} 33. Kf2 {[%clk 0:01:14.6]}
33... Nf6 {[%clk 0:01:27.8]} 34. Qe6+ {[%clk 0:01:14]} 34... Kg7 {[%clk
0:01:23.5]} 35. Qc6 {[%clk 0:01:06.2]} 35... Ne4+ {[%clk 0:01:22.2]} 36. Kf3
{[%clk 0:00:58.3]} 36... Nd2+ {[%clk 0:01:21.8]} 37. Kf2 {[%clk 0:00:54.2]}
37... Ne4+ {[%clk 0:01:21.4]} 38. Kg2 {[%clk 0:00:51]} 38... Qxe3 {[%clk
0:01:21.3]} 39. Ra5 {[%clk 0:00:28.7]} 39... Qf2+ {[%clk 0:01:13.1]} 40. Kh1
{[%clk 0:00:28.6]} 40... Qxf1+ {[%clk 0:01:13.5]} 41. Ng1 {[%clk 0:00:27.1]}
41... Nxg3+ {[%clk 0:01:11.7]} 42. Kh2 {[%clk 0:00:27.3]} 42... Qf2# {[%clk
0:01:12.4]} 0-1

[Event "Early-Titled-Tuesday-Blitz-December-26-2023"]
[Site "Chess.com"]
[Date "2023.12.26"]
[Round "7"]
[White "whitemirrorninja"]
[Black "Chempiblinka"]
[Result "1-0"]
[WhiteElo "2542"]
[BlackElo "2273"]
[TimeControl "180+1"]
[EndTime "9:16:26 PST"]
[Termination "whitemirrorninja won on time"]

1. d4 {[%clk 0:03:00.9]} 1... Nf6 {[%clk 0:02:52.8]} 2. Nc3 {[%clk 0:02:59.8]}
2... d5 {[%clk 0:02:49.5]} 3. Bf4 {[%clk 0:03:00]} 3... g6 {[%clk 0:02:47.8]} 4.
e3 {[%clk 0:02:59.1]} 4... Bg7 {[%clk 0:02:47.9]} 5. h4 {[%clk 0:02:59.7]} 5...
h5 {[%clk 0:02:47]} 6. Be2 {[%clk 0:02:57.7]} 6... O-O {[%clk 0:02:42.1]} 7. Nf3
{[%clk 0:02:58.3]} 7... b6 {[%clk 0:02:39.1]} 8. Ne5 {[%clk 0:02:56.2]} 8... c5
{[%clk 0:02:37.9]} 9. g4 {[%clk 0:02:56.8]} 9... hxg4 {[%clk 0:02:36.5]} 10.
Nxg4 {[%clk 0:02:52.9]} 10... Nxg4 {[%clk 0:02:36.2]} 11. Bxg4 {[%clk
0:02:53.6]} 11... Bxg4 {[%clk 0:02:34.8]} 12. Qxg4 {[%clk 0:02:54.3]} 12... cxd4
{[%clk 0:02:32.3]} 13. exd4 {[%clk 0:02:53.5]} 13... Bxd4 {[%clk 0:02:28.4]} 14.
h5 {[%clk 0:02:49.1]} 14... Qc8 {[%clk 0:02:02.2]} 15. Qh4 {[%clk 0:02:26.1]}
15... Bxc3+ {[%clk 0:01:58.5]} 16. bxc3 {[%clk 0:02:17.9]} 16... Qxc3+ {[%clk
0:01:59.4]} 17. Ke2 {[%clk 0:02:18.4]} 17... Qxc2+ {[%clk 0:01:44.9]} 18. Kf3
{[%clk 0:02:13.7]} 18... Qe4+ {[%clk 0:01:42.4]} 19. Kg3 {[%clk 0:02:13]} 19...
e5 {[%clk 0:01:39.8]} 20. Bg5 {[%clk 0:01:57]} 20... Qxh4+ {[%clk 0:01:19]} 21.
Bxh4 {[%clk 0:01:57.9]} 21... Nd7 {[%clk 0:01:14]} 22. Rad1 {[%clk 0:01:48.8]}
22... d4 {[%clk 0:01:13.8]} 23. f4 {[%clk 0:01:48.9]} 23... Rac8 {[%clk
0:01:06.2]} 24. fxe5 {[%clk 0:01:46.8]} 24... Rc3+ {[%clk 0:00:56.3]} 25. Kf4
{[%clk 0:01:46.5]} 25... Nc5 {[%clk 0:00:52.3]} 26. hxg6 {[%clk 0:01:39.6]}
26... Ne6+ {[%clk 0:00:47.1]} 27. Ke4 {[%clk 0:01:14.9]} 27... Re3+ {[%clk
0:00:24.9]} 28. Kd5 {[%clk 0:01:13.6]} 28... d3 {[%clk 0:00:06.6]} 29. Bf6
{[%clk 0:01:00.1]} 29... Nf4+ {[%clk 0:00:06.3]} 30. Kd4 {[%clk 0:01:00.4]}
30... Nxg6 {[%clk 0:00:06.1]} 31. Kxe3 {[%clk 0:00:59.8]} 1-0